[Event "46th GRE-chT Premier 2018"]
[Site "Rio Achaia"]
[Date "2018.07.10"]
[Round "1"]
[White "Pantazopoulos, Stavros"]
[Black "Azis, Azizis Ektoras"]
[Result "1/2-1/2"]
[ECO "E44"]
[WhiteElo "2153"]
[BlackElo "2209"]
[Annotator "NA"]
[PlyCount "87"]
[EventDate "2018.07.10"]
[EventType "team-tourn"]
[EventCountry "GRE"]
[SourceTitle "playchess.com"]
[Source "ChessBase"]
[SourceQuality "1"]
[TimeControl "40/5400+30:1800+30"]

1. d4 {[%emt 0:00:00]} Nf6 {[%emt 0:00:00]} 2. c4 {[%emt 0:00:00]} e6 {[%emt 0:00:00]} 3. Nc3 {[%emt 0:00:00]} Bb4 {[%emt 0:00:00]} 4. e3 {[%emt 0:00:00]} b6 {[%emt 0:00:29]} 5. Nge2 {[%emt 0:00:09]} c5 {[%emt 0:00:52]} 6. a3 {[%emt 0:00:06]} Ba5 {[%emt 0:00:06]} 7. Rb1 {[%emt 0:00:04]} Na6 {[%emt 0:00:42]} 8. g3 {[%emt 0:00:35]} Bb7 {[%emt 0:02:25]} 9. d5 {[%emt 0:00:19]} exd5 {[%emt 0:06:14]} 10. Bg2 {[%emt 0:00:40]} Rb8 {[%emt 0:13:55]} 11. cxd5 {[%emt 0:07:54]} b5 {[%emt 0:09:32]} 12. O-O {[%emt 0:21:57]} b4 {[%emt 0:02:13]} 13. Nb5 {[%emt 0:02:04]} Qb6 {[%emt 0:06:00]} 14. axb4 {[%emt 0:18:50]} Nxb4 {[%emt 0:09:07]} 15. Nbc3 {[%emt 0:07:57]} O-O {[%emt 0:13:37]} 16. Ra1 {[%emt 0:10:02]} Qd8 {[%emt 0:02:46]} 17. e4 {[%emt 0:07:09]} d6 {[%emt 0:01:29]} 18. Bf4 {[%emt 0:05:12]} Ne8 {[%emt 0:09:01]} 19. Nb5 {[%emt 0:06:26]} Bb6 {[%emt 0:06:50]} 20. Nxa7 {[%emt 0:02:34]} Bxa7 {[%emt 0:03:54]} 21. Rxa7 {[%emt 0:00:04]} Ba6 {[%emt 0:01:23]} 22. Bd2 {[%emt 0:05:07]} Qb6 {[%emt 0:03:00]} 23. Re7 {[%emt 0:00:16]} Nd3 {[%emt 0:01:05]} 24. Bc3 {[%emt 0:00:36]} Nxb2 {[%emt 0:01:12]} 25. Qd2 {[%emt 0:00:30]} Nc4 {[%emt 0:02:51]} 26. Qa2 {[%emt 0:02:32]} Ne5 {[%emt 0:02:28]} 27. Ra1 {[%emt 0:00:25]} Bc4 {[%emt 0:01:07]} 28. Qd2 {[%emt 0:00:36]} Nc7 {[%emt 0:00:40]} 29. Bxe5 {[%emt 0:01:41]} dxe5 {[%emt 0:00:21]} 30. Rxe5 {[%emt 0:00:23]} Qf6 {[%emt 0:01:04]} 31. f4 {[%emt 0:00:23]} Rbe8 {[%emt 0:00:27]} 32. Rc1 {[%emt 0:00:34]} Bxe2 {[%emt 0:00:30]} 33. Qxe2 {[%emt 0:00:47]} Rxe5 {[%emt 0:00:07]} 34. fxe5 {[%emt 0:00:04]} Qxe5 {[%emt 0:00:08]} 35. Rxc5 {[%emt 0:00:50]} Ne8 {[%emt 0:01:01]} 36. Qd2 {[%emt 0:00:40]} Nd6 {[%emt 0:00:39]} 37. Qc3 {[%emt 0:00:17]} f6 {[%emt 0:00:38]} 38. Qxe5 {[%emt 0:00:28]} fxe5 {[%emt 0:00:02]} 39. Rc6 {[%emt 0:00:23]} Rf6 {[%emt 0:00:52]} 40. Rc7 {[%emt 0:00:00]} Kf8 {[%emt 0:00:00]} 41. Rc6 {[%emt 0:15:32]} h6 {[%emt 0:01:38]} 42. Ra6 {[%emt 0:04:22]} Ke7 {[%emt 0:03:48]} 43. Ra7+ {[%emt 0:00:11]} Kf8 {[%emt 0:00:07]} 44. Ra6 {[%emt 0:00:08]} 1/2-1/2

[Event "46th GRE-chT Premier 2018"]
[Site "Rio Achaia"]
[Date "2018.07.10"]
[Round "1"]
[White "Makropoulou, Marina"]
[Black "Michna, Marta"]
[Result "1/2-1/2"]
[ECO "C16"]
[WhiteElo "2135"]
[BlackElo "2322"]
[Annotator "NA"]
[PlyCount "33"]
[EventDate "2018.07.10"]
[EventType "team-tourn"]
[EventCountry "GRE"]
[SourceTitle "playchess.com"]
[Source "ChessBase"]
[SourceQuality "1"]
[TimeControl "40/5400+30:1800+30"]

1. e4 {[%emt 0:00:00]} e6 {[%emt 0:00:00]} 2. d4 {[%emt 0:00:00]} d5 {[%emt 0:00:00]} 3. Nc3 {[%emt 0:00:00]} Bb4 {[%emt 0:00:51]} 4. e5 {[%emt 0:00:12]} Ne7 {[%emt 0:00:33]} 5. Bd2 {[%emt 0:02:39]} c5 {[%emt 0:00:23]} 6. a3 {[%emt 0:10:55]} Bxc3 {[%emt 0:01:03]} 7. Bxc3 {[%emt 0:00:05]} cxd4 {[%emt 0:00:54]} 8. Bxd4 {[%emt 0:01:04]} Nbc6 {[%emt 0:00:17]} 9. Nf3 {[%emt 0:00:36]} Nxd4 {[%emt 0:10:08]} 10. Qxd4 {[%emt 0:00:58]} Nc6 {[%emt 0:01:52]} 11. Qe3 {[%emt 0:04:58]} d4 {[%emt 0:08:56]} 12. Qf4 {[%emt 0:19:46]} Qa5+ {[%emt 0:04:10]} 13. Qd2 {[%emt 0:00:19]} Qd5 {[%emt 0:00:19]} 14. Qf4 {[%emt 0:01:08]} Qa5+ {[%emt 0:20:55]} 15. Qd2 {[%emt 0:00:06]} Qd5 {[%emt 0:00:29]} 16. Qf4 {[%emt 0:00:06]} Qa5+ {[%emt 0:03:17]} 17. Qd2 1/2-1/2

[Event "46th GRE-chT Premier 2018"]
[Site "Rio Achaia"]
[Date "2018.07.10"]
[Round "1"]
[White "Krallis, Christos"]
[Black "Petrakis, Stylianos"]
[Result "1-0"]
[ECO "A16"]
[WhiteElo "2132"]
[BlackElo "2024"]
[Annotator "NA"]
[PlyCount "53"]
[EventDate "2018.07.10"]
[EventType "team-tourn"]
[EventCountry "GRE"]
[SourceTitle "playchess.com"]
[Source "ChessBase"]
[SourceQuality "1"]
[TimeControl "40/5400+30:1800+30"]

1. c4 {[%emt 0:00:00]} Nf6 {[%emt 0:00:00]} 2. Nc3 {[%emt 0:00:00]} g6 {[%emt 0:00:00]} 3. e4 {[%emt 0:00:00]} d6 {[%emt 0:00:11]} 4. Nge2 {[%emt 0:00:05]} Bg7 {[%emt 0:00:15]} 5. g3 {[%emt 0:00:27]} O-O {[%emt 0:00:49]} 6. Bg2 {[%emt 0:00:04]} c5 {[%emt 0:03:15]} 7. O-O {[%emt 0:00:23]} Nc6 {[%emt 0:00:23]} 8. d3 {[%emt 0:00:11]} a6 {[%emt 0:01:31]} 9. a3 {[%emt 0:00:33]} Rb8 {[%emt 0:02:04]} 10. Rb1 {[%emt 0:00:09]} Bd7 {[%emt 0:01:27]} 11. b4 {[%emt 0:01:25]} cxb4 {[%emt 0:16:39]} 12. axb4 {[%emt 0:00:11]} b5 {[%emt 0:03:00]} 13. cxb5 {[%emt 0:00:41]} axb5 {[%emt 0:00:04]} 14. Qb3 {[%emt 0:16:04]} Ne8 {[%emt 0:12:45]} 15. Be3 {[%emt 0:03:54]} e5 {[%emt 0:14:54]} 16. Nd5 {[%emt 0:08:12]} Be6 {[%emt 0:13:19]} 17. f4 {[%emt 0:04:25]} Ne7 {[%emt 0:04:14]} 18. Rbc1 {[%emt 0:07:42]} Kh8 {[%emt 0:15:48]} 19. Nec3 {[%emt 0:07:28]} Nc7 {[%emt 0:05:36]} 20. Qd1 {[%emt 0:04:09]} Na6 {[%emt 0:02:58]} 21. Nxe7 {[%emt 0:01:07]} Qxe7 {[%emt 0:00:06]} 22. f5 {[%emt 0:00:04]} Bd7 {[%emt 0:01:07]} 23. Nd5 {[%emt 0:00:40]} Qd8 {[%emt 0:00:21]} 24. f6 {[%emt 0:00:05]} Bxf6 {[%emt 0:00:31]} 25. Nxf6 {[%emt 0:00:46]} Nxb4 {[%emt 0:00:38]} 26. Qd2 {[%emt 0:00:25]} Na6 {[%emt 0:00:26]} 27. Bh6 {[%emt 0:01:03]} 1-0

[Event "46th GRE-chT Premier 2018"]
[Site "Rio Achaia"]
[Date "2018.07.10"]
[Round "1"]
[White "Mavrikakis, Georgios"]
[Black "Ilandzis, Spyridon"]
[Result "0-1"]
[ECO "B53"]
[WhiteElo "2127"]
[BlackElo "1980"]
[Annotator "NA"]
[PlyCount "68"]
[EventDate "2018.07.10"]
[EventType "team-tourn"]
[EventCountry "GRE"]
[SourceTitle "playchess.com"]
[Source "ChessBase"]
[SourceQuality "1"]
[TimeControl "40/5400+30:1800+30"]

1. e4 c5 2. Nf3 d6 3. d4 cxd4 4. Qxd4 a6 5. h3 Nf6 6. Be2 e6 7. O-O Be7 8. c4 O-O 9. Nc3 Nbd7 10. Bg5 Qc7 11. Rfd1 b6 12. Bh4 Bb7 13. Bg3 e5 14. Qe3 Nc5 15. Nd2 Ne6 16. Nb3 Nd7 17. h4 Ndc5 18. Bf3 Nxb3 19. axb3 Nd4 20. Rxd4 exd4 21. Qxd4 Rad8 22. Rd1 Qc5 23. Qd3 Rfe8 24. h5 Qb4 25. Ne2 b5 26. Nd4 g6 27. cxb5 axb5 28. Qxb5 Qxb5 29. Nxb5 gxh5 30. Bxh5 Bxe4 31. Bf4 Rd7 32. Re1 Bc6 33. Nxd6 Rxd6 34. Bxd6 Bxd6 0-1

[Event "46th GRE-chT Premier 2018"]
[Site "Rio Achaia"]
[Date "2018.07.10"]
[Round "1"]
[White "Kordis, Konstantinos"]
[Black "Gimnopoulos, Lazaros"]
[Result "1-0"]
[ECO "B90"]
[WhiteElo "2100"]
[BlackElo "2033"]
[Annotator "NA"]
[PlyCount "101"]
[EventDate "2018.07.10"]
[EventType "team-tourn"]
[EventCountry "GRE"]
[SourceTitle "playchess.com"]
[Source "ChessBase"]
[SourceQuality "1"]
[TimeControl "40/5400+30:1800+30"]

1. e4 {[%emt 0:00:00]} c5 {[%emt 0:00:00]} 2. Nf3 {[%emt 0:00:00]} d6 {[%emt 0:00:00]} 3. d4 {[%emt 0:00:17]} cxd4 {[%emt 0:00:02]} 4. Nxd4 {[%emt 0:00:07]} Nf6 {[%emt 0:00:06]} 5. Nc3 {[%emt 0:00:14]} a6 {[%emt 0:00:16]} 6. Bc4 {[%emt 0:00:33]} e6 {[%emt 0:00:21]} 7. Bb3 {[%emt 0:00:09]} Be7 {[%emt 0:00:15]} 8. Be3 {[%emt 0:01:22]} Nc6 {[%emt 0:01:33]} 9. Qe2 {[%emt 0:00:22]} Na5 {[%emt 0:02:14]} 10. O-O-O {[%emt 0:05:28]} Nxb3+ {[%emt 0:00:29]} 11. cxb3 {[%emt 0:00:32]} Qa5 {[%emt 0:17:08]} 12. Kb1 {[%emt 0:02:48]} Bd7 {[%emt 0:09:33]} 13. g4 {[%emt 0:03:43]} Bc6 {[%emt 0:08:26]} 14. f3 {[%emt 0:05:57]} Rd8 {[%emt 0:13:39]} 15. g5 {[%emt 0:09:51]} Nh5 {[%emt 0:03:50]} 16. f4 {[%emt 0:03:53]} g6 {[%emt 0:03:17]} 17. f5 {[%emt 0:05:01]} exf5 {[%emt 0:07:12]} 18. exf5 {[%emt 0:03:35]} Bxh1 {[%emt 0:00:54]} 19. f6 {[%emt 0:00:13]} Nxf6 {[%emt 0:03:33]} 20. gxf6 {[%emt 0:00:08]} Bxf6 {[%emt 0:00:17]} 21. Bg5+ {[%emt 0:01:37]} Be5 {[%emt 0:00:10]} 22. b4 {[%emt 0:05:44]} Qxb4 {[%emt 0:03:48]} 23. a3 {[%emt 0:08:47]} Qc5 {[%emt 0:07:14]} 24. Nb3 {[%emt 0:02:05]} Qb6 {[%emt 0:06:12]} 25. Bxd8 {[%emt 0:00:28]} Qxd8 {[%emt 0:01:51]} 26. Rxh1 {[%emt 0:00:54]} O-O {[%emt 0:00:14]} 27. Nd5 {[%emt 0:00:38]} Qh4 {[%emt 0:00:48]} 28. Qf3 {[%emt 0:04:27]} b5 {[%emt 0:01:00]} 29. Nb4 {[%emt 0:04:40]} a5 {[%emt 0:03:40]} 30. Nxa5 {[%emt 0:01:09]} Rc8 {[%emt 0:00:51]} 31. Nac6 {[%emt 0:00:20]} Rc7 {[%emt 0:01:43]} 32. Nxe5 {[%emt 0:01:23]} dxe5 {[%emt 0:00:08]} 33. Qd5 {[%emt 0:06:53]} e4 {[%emt 0:02:12]} 34. Qxb5 {[%emt 0:00:46]} Re7 {[%emt 0:00:53]} 35. Nc6 {[%emt 0:05:23]} Re6 {[%emt 0:00:54]} 36. Nd4 {[%emt 0:00:21]} Re7 {[%emt 0:00:28]} 37. Qb8+ {[%emt 0:01:53]} Kg7 {[%emt 0:00:14]} 38. Rg1 {[%emt 0:04:36]} Qh3 {[%emt 0:00:45]} 39. Qb5 {[%emt 0:01:38]} Kf8 {[%emt 0:01:07]} 40. Qc5 {[%emt 0:00:00]} Qxh2 {[%emt 0:00:00]} 41. Nc6 {[%emt 0:03:24]} Qc7 {[%emt 0:08:21]} 42. a4 {[%emt 0:02:23]} Kg7 {[%emt 0:02:35]} 43. Qd4+ {[%emt 0:00:39]} Kg8 {[%emt 0:00:25]} 44. Nxe7+ {[%emt 0:00:08]} Qxe7 {[%emt 0:00:06]} 45. Re1 {[%emt 0:00:16]} f5 {[%emt 0:00:10]} 46. Rc1 {[%emt 0:00:07]} g5 {[%emt 0:02:46]} 47. Rc8+ {[%emt 0:04:06]} Kf7 {[%emt 0:01:07]} 48. Qb6 {[%emt 0:00:12]} e3 {[%emt 0:01:52]} 49. Rc7 {[%emt 0:00:10]} f4 {[%emt 0:00:15]} 50. Rxe7+ {[%emt 0:00:13]} Kxe7 {[%emt 0:00:05]} 51. Qh6 {[%emt 0:00:09]} 1-0

[Event "46th GRE-chT Premier 2018"]
[Site "Rio Achaia"]
[Date "2018.07.10"]
[Round "1"]
[White "Serpetsidakis, Nikolaos"]
[Black "Laspas, Antonios"]
[Result "1-0"]
[ECO "D35"]
[WhiteElo "2087"]
[BlackElo "1566"]
[Annotator "NA"]
[PlyCount "93"]
[EventDate "2018.07.10"]
[EventType "team-tourn"]
[EventCountry "GRE"]
[SourceTitle "playchess.com"]
[Source "ChessBase"]
[SourceQuality "1"]
[TimeControl "40/5400+30:1800+30"]

1. d4 {[%emt 0:00:00]} Nf6 {[%emt 0:00:00]} 2. c4 {[%emt 0:00:00]} e6 {[%emt 0:00:00]} 3. Nc3 {[%emt 0:00:00]} d5 {[%emt 0:00:11]} 4. cxd5 {[%emt 0:00:15]} exd5 {[%emt 0:00:20]} 5. Bg5 {[%emt 0:00:08]} c6 {[%emt 0:00:27]} 6. e3 {[%emt 0:00:15]} Be7 {[%emt 0:00:18]} 7. Bd3 {[%emt 0:00:10]} Nbd7 {[%emt 0:00:13]} 8. Nge2 {[%emt 0:02:15]} Nh5 {[%emt 0:03:35]} 9. Bxe7 {[%emt 0:00:16]} Qxe7 {[%emt 0:00:19]} 10. O-O {[%emt 0:00:37]} O-O {[%emt 0:00:43]} 11. Rb1 {[%emt 0:00:33]} Ndf6 {[%emt 0:06:54]} 12. b4 {[%emt 0:08:59]} b5 {[%emt 0:04:18]} 13. a4 {[%emt 0:01:52]} a6 {[%emt 0:00:38]} 14. Nc1 {[%emt 0:09:01]} g6 {[%emt 0:00:34]} 15. Qc2 {[%emt 0:07:34]} Bd7 {[%emt 0:07:23]} 16. Re1 {[%emt 0:05:54]} Rfe8 {[%emt 0:07:58]} 17. Re2 {[%emt 0:09:44]} Qd6 {[%emt 0:08:53]} 18. f3 {[%emt 0:02:50]} Rac8 {[%emt 0:06:44]} 19. Qd2 {[%emt 0:05:11]} Re7 {[%emt 0:04:34]} 20. Bc2 {[%emt 0:00:14]} Qc7 {[%emt 0:04:39]} 21. Nd3 {[%emt 0:08:12]} Ng7 {[%emt 0:04:34]} 22. Nc5 {[%emt 0:01:09]} Ra8 {[%emt 0:00:51]} 23. Ra1 {[%emt 0:01:40]} Ree8 {[%emt 0:01:46]} 24. Bb3 {[%emt 0:14:47]} Ne6 {[%emt 0:06:20]} 25. Nd3 {[%emt 0:00:49]} Qd6 {[%emt 0:06:28]} 26. a5 {[%emt 0:00:56]} Re7 {[%emt 0:00:59]} 27. Rae1 {[%emt 0:05:26]} Rae8 {[%emt 0:02:31]} 28. Nd1 {[%emt 0:00:58]} Bc8 {[%emt 0:04:21]} 29. N1b2 {[%emt 0:00:33]} Nh5 {[%emt 0:00:41]} 30. g4 {[%emt 0:03:01]} Nhg7 {[%emt 0:00:25]} 31. f4 {[%emt 0:05:11]} f5 {[%emt 0:03:20]} 32. g5 {[%emt 0:02:35]} Kf8 {[%emt 0:03:02]} 33. Ne5 {[%emt 0:00:18]} Nd8 {[%emt 0:01:44]} 34. Rc1 {[%emt 0:00:22]} Bb7 {[%emt 0:00:19]} 35. Nbd3 {[%emt 0:03:27]} Nge6 {[%emt 0:01:14]} 36. h4 {[%emt 0:00:51]} Ba8 {[%emt 0:03:02]} 37. Rh2 {[%emt 0:01:32]} Ng7 {[%emt 0:00:18]} 38. Nc5 {[%emt 0:00:05]} Ra7 {[%emt 0:00:29]} 39. Bd1 {[%emt 0:01:10]} Nf7 {[%emt 0:01:10]} 40. h5 {[%emt 0:00:00]} gxh5 {[%emt 0:00:00]} 41. Bxh5 {[%emt 0:04:18]} Nxh5 {[%emt 0:03:05]} 42. Rxh5 {[%emt 0:00:10]} Nxe5 {[%emt 0:00:05]} 43. dxe5 {[%emt 0:00:38]} Qd8 {[%emt 0:03:49]} 44. Qd3 {[%emt 0:08:19]} Qc8 {[%emt 0:00:49]} 45. e6 {[%emt 0:00:20]} Rae7 {[%emt 0:02:12]} 46. Nd7+ {[%emt 0:01:59]} Kg7 {[%emt 0:00:57]} 47. Qd4+ {[%emt 0:00:12]} 1-0

[Event "46th GRE-chT Premier 2018"]
[Site "Rio Achaia"]
[Date "2018.07.10"]
[Round "1"]
[White "Triantos, Konstantinos"]
[Black "Damianou, Ioannis"]
[Result "1/2-1/2"]
[ECO "C77"]
[WhiteElo "2078"]
[BlackElo "2058"]
[Annotator "NA"]
[PlyCount "73"]
[EventDate "2018.07.10"]
[EventType "team-tourn"]
[EventCountry "GRE"]
[SourceTitle "playchess.com"]
[Source "ChessBase"]
[SourceQuality "1"]
[TimeControl "40/5400+30:1800+30"]

1. e4 {[%emt 0:00:00]} e5 {[%emt 0:00:00]} 2. Nf3 {[%emt 0:00:00]} Nc6 {[%emt 0:00:00]} 3. Bb5 {[%emt 0:00:00]} a6 {[%emt 0:00:00]} 4. Ba4 {[%emt 0:00:00]} Nf6 {[%emt 0:00:08]} 5. d3 {[%emt 0:00:43]} b5 {[%emt 0:00:14]} 6. Bb3 {[%emt 0:00:03]} Be7 {[%emt 0:00:06]} 7. O-O {[%emt 0:00:10]} d6 {[%emt 0:00:09]} 8. a3 {[%emt 0:00:04]} O-O {[%emt 0:00:16]} 9. Nc3 {[%emt 0:00:08]} Bg4 {[%emt 0:01:18]} 10. Be3 {[%emt 0:00:16]} Nd4 {[%emt 0:00:10]} 11. Bxd4 {[%emt 0:00:18]} exd4 {[%emt 0:00:06]} 12. Nd5 {[%emt 0:00:07]} c5 {[%emt 0:04:30]} 13. h3 {[%emt 0:02:14]} Be6 {[%emt 0:00:52]} 14. Nxf6+ {[%emt 0:06:39]} Bxf6 {[%emt 0:00:10]} 15. Bxe6 {[%emt 0:00:07]} fxe6 {[%emt 0:00:07]} 16. Nh2 {[%emt 0:00:11]} Be5 {[%emt 0:13:34]} 17. Qg4 {[%emt 0:04:00]} Bxh2+ {[%emt 0:03:52]} 18. Kxh2 {[%emt 0:00:04]} Qf6 {[%emt 0:01:32]} 19. f4 {[%emt 0:01:55]} e5 {[%emt 0:09:34]} 20. f5 {[%emt 0:00:17]} c4 {[%emt 0:00:49]} 21. Rf2 {[%emt 0:09:14]} Rac8 {[%emt 0:02:49]} 22. Raf1 {[%emt 0:02:26]} Rc7 {[%emt 0:02:01]} 23. Qh5 {[%emt 0:00:27]} cxd3 {[%emt 0:00:45]} 24. cxd3 {[%emt 0:00:05]} Qf7 {[%emt 0:00:39]} 25. Qh4 {[%emt 0:03:37]} Qf6 {[%emt 0:01:09]} 26. Qh5 {[%emt 0:00:15]} Qf7 {[%emt 0:00:34]} 27. Qf3 {[%emt 0:09:04]} Qf6 {[%emt 0:03:21]} 28. g4 {[%emt 0:10:10]} Qg5 {[%emt 0:16:33]} 29. Rg2 {[%emt 0:09:00]} Rfc8 {[%emt 0:04:54]} 30. Qg3 {[%emt 0:01:00]} Rc2 {[%emt 0:03:32]} 31. Rff2 {[%emt 0:00:04]} Qc1 {[%emt 0:02:23]} 32. Qh4 {[%emt 0:07:36]} Qxb2 {[%emt 0:00:53]} 33. Rxc2 {[%emt 0:00:13]} Rxc2 {[%emt 0:00:08]} 34. Qd8+ {[%emt 0:00:06]} Kf7 {[%emt 0:00:04]} 35. Qd7+ {[%emt 0:00:17]} Kf8 {[%emt 0:00:07]} 36. Qxd6+ {[%emt 0:01:11]} Kf7 {[%emt 0:00:19]} 37. Qd7+ {[%emt 0:19:43]} 1/2-1/2

[Event "46th GRE-chT Premier 2018"]
[Site "Rio Achaia"]
[Date "2018.07.10"]
[Round "1"]
[White "Fragkos, Vasilios"]
[Black "Sgouros, Apostolos"]
[Result "1-0"]
[ECO "B20"]
[WhiteElo "2066"]
[BlackElo "2024"]
[Annotator "NA"]
[PlyCount "69"]
[EventDate "2018.07.10"]
[EventType "team-tourn"]
[EventCountry "GRE"]
[SourceTitle "playchess.com"]
[Source "ChessBase"]
[SourceQuality "1"]
[TimeControl "40/5400+30:1800+30"]

1. e4 {[%emt 0:00:00]} c5 {[%emt 0:00:08]} 2. b3 {[%emt 0:00:15]} e5 {[%emt 0:00:26]} 3. Bb2 {[%emt 0:01:05]} d6 {[%emt 0:00:09]} 4. Nf3 {[%emt 0:02:30]} Be7 {[%emt 0:01:52]} 5. Bb5+ {[%emt 0:00:47]} Bd7 {[%emt 0:00:42]} 6. Bxd7+ {[%emt 0:01:03]} Qxd7 {[%emt 0:00:07]} 7. O-O {[%emt 0:00:30]} Nf6 {[%emt 0:00:06]} 8. Re1 {[%emt 0:01:59]} Nc6 {[%emt 0:00:09]} 9. d3 {[%emt 0:03:27]} O-O {[%emt 0:00:29]} 10. Nbd2 {[%emt 0:00:07]} b5 {[%emt 0:04:33]} 11. a4 {[%emt 0:01:37]} a6 {[%emt 0:01:10]} 12. Nf1 {[%emt 0:00:46]} Rfc8 {[%emt 0:04:43]} 13. Ne3 {[%emt 0:00:11]} Bd8 {[%emt 0:00:57]} 14. c3 {[%emt 0:05:53]} Ba5 {[%emt 0:09:14]} 15. Re2 {[%emt 0:04:24]} Re8 {[%emt 0:08:36]} 16. axb5 {[%emt 0:08:22]} axb5 {[%emt 0:00:11]} 17. Nf5 {[%emt 0:16:17]} d5 {[%emt 0:17:44]} 18. Qc1 {[%emt 0:10:01]} h6 {[%emt 0:23:26]} 19. N3h4 {[%emt 0:08:21]} Ne7 {[%emt 0:04:47]} 20. Nxh6+ {[%emt 0:13:13]} gxh6 {[%emt 0:00:09]} 21. Qxh6 {[%emt 0:00:06]} Qg4 {[%emt 0:11:10]} 22. Re3 {[%emt 0:04:34]} Qf4 {[%emt 0:03:22]} 23. Rg3+ {[%emt 0:01:44]} Ng6 {[%emt 0:00:06]} 24. Rxg6+ {[%emt 0:07:22]} fxg6 {[%emt 0:00:09]} 25. Qxg6+ {[%emt 0:00:07]} Kf8 {[%emt 0:04:49]} 26. Nf5 {[%emt 0:00:07]} Re6 {[%emt 0:00:47]} 27. Qg7+ {[%emt 0:03:37]} Ke8 {[%emt 0:00:04]} 28. Bc1 {[%emt 0:03:41]} Qg4 {[%emt 0:01:05]} 29. Bg5 {[%emt 0:00:49]} Bd8 {[%emt 0:00:36]} 30. Re1 {[%emt 0:01:05]} Qh5 {[%emt 0:02:27]} 31. exd5 {[%emt 0:00:10]} Nxd5 {[%emt 0:00:37]} 32. Bxd8 {[%emt 0:00:57]} Rxd8 {[%emt 0:00:36]} 33. Qg8+ {[%emt 0:00:26]} Kd7 {[%emt 0:00:10]} 34. Qxe6+ {[%emt 0:00:06]} Kxe6 {[%emt 0:00:18]} 35. Ng7+ {[%emt 0:00:02] Kf5 [%clk 0:01:10] Nxh5 [%clk 0:02:18] Nxc3 [%clk 0:01:31] Ng3+ [%clk 0:02:16] Kf4 [%clk 0:01:38] Re3 [%clk 0:00:51] Ra8 [%clk 0:01:03] h4 [%clk 0:01:05] Ra1+ [%clk 0:01:19] Kh2 [%clk 0:31:10] Nd1 [%clk 0:30:34] Re4# [%clk 0:31:28] Kxe4} 1-0

[Event "46th GRE-chT Premier 2018"]
[Site "Rio Achaia"]
[Date "2018.07.10"]
[Round "1"]
[White "Rousis, Mihail"]
[Black "Dimopoulos, Dimitrios"]
[Result "1-0"]
[ECO "B13"]
[WhiteElo "2048"]
[BlackElo "1944"]
[Annotator "NA"]
[PlyCount "79"]
[EventDate "2018.07.10"]
[EventType "team-tourn"]
[EventCountry "GRE"]
[SourceTitle "playchess.com"]
[Source "ChessBase"]
[SourceQuality "1"]
[TimeControl "40/5400+30:1800+30"]

1. e4 {[%emt 0:00:00]} c6 {[%emt 0:00:00]} 2. d4 {[%emt 0:00:00]} d5 {[%emt 0:00:00]} 3. exd5 {[%emt 0:00:00]} cxd5 {[%emt 0:00:00]} 4. c4 {[%emt 0:00:00]} Nf6 {[%emt 0:00:41]} 5. Nc3 {[%emt 0:00:12]} Nc6 {[%emt 0:04:41]} 6. Bg5 {[%emt 0:00:34]} dxc4 {[%emt 0:11:48]} 7. Bxc4 {[%emt 0:01:03]} Nxd4 {[%emt 0:23:28]} 8. Nge2 {[%emt 0:05:32]} e5 {[%emt 0:14:29]} 9. f4 {[%emt 0:14:43]} h6 {[%emt 0:21:36]} 10. fxe5 {[%emt 0:12:11]} hxg5 {[%emt 0:03:14]} 11. Qxd4 {[%emt 0:00:36]} Qxd4 {[%emt 0:01:31]} 12. Nxd4 {[%emt 0:00:06]} Ng4 {[%emt 0:05:21]} 13. Ndb5 {[%emt 0:02:31]} Rb8 {[%emt 0:03:19]} 14. O-O-O {[%emt 0:14:10]} Bd7 {[%emt 0:02:45]} 15. Nc7+ {[%emt 0:10:35]} Kd8 {[%emt 0:00:24]} 16. e6 {[%emt 0:00:56]} fxe6 {[%emt 0:01:22]} 17. Bxe6 {[%emt 0:03:44]} Nf6 {[%emt 0:01:04]} 18. N7b5 {[%emt 0:07:55]} a6 {[%emt 0:01:14]} 19. Ne4 {[%emt 0:01:47]} axb5 20. Nxf6 {[%emt 0:00:07]} gxf6 {[%emt 0:01:13]} 21. Rxd7+ {[%emt 0:00:15]} Ke8 {[%emt 0:00:20]} 22. Re1 {[%emt 0:00:40]} Bc5 {[%emt 0:00:53]} 23. Rg7 {[%emt 0:08:49]} Bd6 {[%emt 0:01:23]} 24. h3 {[%emt 0:04:01]} b6 {[%emt 0:00:31]} 25. Bc4+ {[%emt 0:01:55]} Be5 {[%emt 0:00:34]} 26. Bxb5+ {[%emt 0:00:29]} Kf8 {[%emt 0:00:13]} 27. Ra7 {[%emt 0:01:02]} Rc8+ {[%emt 0:00:27]} 28. Kb1 {[%emt 0:00:11]} Rh4 {[%emt 0:00:31]} 29. Bd7 {[%emt 0:02:08]} Rd8 {[%emt 0:00:46]} 30. Bg4 {[%emt 0:00:44]} Re8 {[%emt 0:00:32]} 31. Rd1 {[%emt 0:00:54]} Rh6 {[%emt 0:00:34]} 32. Rdd7 {[%emt 0:00:47]} f5 {[%emt 0:00:31]} 33. Rf7+ {[%emt 0:01:06]} Kg8 {[%emt 0:00:07]} 34. Rxf5 {[%emt 0:01:01]} Rf6 {[%emt 0:00:50]} 35. Rxg5+ {[%emt 0:00:21]} Kf8 {[%emt 0:00:05]} 36. Rf5 {[%emt 0:01:17]} Rxf5 {[%emt 0:00:17]} 37. Bxf5 {[%emt 0:00:05]} Bf6 {[%emt 0:00:18]} 38. Bg6 {[%emt 0:02:09]} Re1+ {[%emt 0:00:41]} 39. Kc2 {[%emt 0:00:04]} Bg7 {[%emt 0:00:22]} 40. Ra8+ {[%emt 0:00:00]} 1-0